[Event "7th Sharjah Masters 2024"]
[Site "Sharjah"]
[Date "2024.05.21"]
[Round "8.7"]
[White "Vokhidov, Shamsiddin"]
[Black "Niemann, Hans Moke"]
[Result "1-0"]
[ECO "B30"]
[WhiteElo "2592"]
[BlackElo "2689"]
[Annotator "TA"]
[PlyCount "83"]
[EventDate "2024.05.13"]
[EventType "swiss"]
[EventCountry "UAE"]
[SourceTitle "playchess.com"]
[Source "ChessBase"]
[SourceQuality "1"]
[TimeControl "5400+30"]

{[%evp 13,83,18,12,11,8,-24,0,-21,0,0,0,0,0,0,0,-3,-3,-3,0,0,0,0,-12,-11,-6,0,0,-74,-65,-64,-17,-24,0,0,0,0,23,20,33,24,93,59,111,120,117,123,121,68,71,72,51,0,3,0,111,114,122,122,120,130,110,129,170,107,130,69,74,70,81,78,528,523]} 1. e4 {[%emt 1:31:00]} c5 {[%emt 1:31:00]} 2. Nf3 {[%emt 0:00:30]} Nc6 {[%emt 0:00:30]} 3. Bb5 {[%emt 0:00:30]} Nf6 {[%emt 0:00:30]} 4. Bxc6 {[%emt 0:00:30]} dxc6 {[%emt 0:00:30]} 5. d3 {[%emt 0:00:30]} Qc7 {[%emt 0:00:30]} 6. e5 {[%emt 0:00:30] B30: Sicilian: 2...Nc6 3 Bb5, lines without ...g6.} Nd5 {[%emt 0:00:30]} 7. c4 $5 {[%emt 0:00:30][%mdl 4] Exploring less charted territory.} Nb4 {[%emt 0:00:30]} 8. a3 {[%emt 0:00:30]} Na6 {[%emt 0:00:30]} 9. Qe2 $146 {[%emt 0:00:30]} ({Predecessor:} 9. O-O Bg4 10. Nbd2 Qd7 11. h3 Bf5 12. Ne4 O-O-O 13. Qa4 Rg8 14. Ng3 Bxd3 15. Rd1 {½-½ Kimlong,L (1747)-Frendzas,P (2278) Champion's League 2021/C9 email}) 9... Bg4 {[%emt 0:00:30]} 10. Nbd2 {[%emt 0:00:30]} Rd8 {[%emt 0:00:30]} 11. h3 {[%emt 0:00:30]} Bf5 {[%emt 0:00:30]} 12. Ne4 {[%emt 0:00:30]} Qd7 {[%emt 0:00:30]} 13. g4 {[%emt 0:00:30]} Bg6 {[%emt 0:00:30]} 14. Nh4 $1 {[%emt 0:00:30]} Bxe4 {[%emt 0:00:30]} 15. dxe4 {[%emt 0:00:30]} Nc7 {[%emt 0:00:30]} 16. Be3 {[%emt 0:00:30]} Ne6 {[%emt 0:00:30]} 17. f4 {[%emt 0:00:30]} g5 {[%emt 0:00:30]} 18. fxg5 {[%emt 0:00:30]} Bg7 {[%emt 0:00:30]} 19. O-O {[%emt 0:00:30]} Qd3 {[%emt 0:00:30]} 20. Qf2 {[%emt 0:00:30]} (20. Qxd3 $1 $11 Rxd3 21. Kf2) 20... Rf8 $17 {[%emt 0:00:30]} 21. Nf3 {[%emt 0:00:30]} Qxe4 {[%emt 0:00:30]} (21... Qxc4 $15 {deserves consideration.} 22. Rae1 b6 (22... Qxe4 23. Bxc5 Qa4 24. Qe3 $11)) 22. Bxc5 $11 {[%emt 0:00:30]} Rd3 {[%emt 0:00:30]} 23. Bxa7 {[%emt 0:00:30]} Nf4 {[%emt 0:00:30]} 24. Kh2 {[%emt 0:00:30]} Qxc4 {[%emt 0:00:30]} 25. Rad1 {[%emt 0:00:30]} Qd5 {[%emt 0:00:30]} (25... Bxe5 {simplifies} 26. Rxd3 Nxd3+ 27. Nxe5 Nxe5 28. Bd4 Nf3+) 26. Bd4 {[%emt 0:00:30]} Qe4 {[%emt 0:00:30]} (26... c5 $1 $11 {remains equal.} 27. Rxd3 Nxd3) 27. Qc2 {[%emt 0:00:30]} Rxd4 {[%emt 0:00:30]} (27... Rg8 $14) 28. Nxd4 $16 {[%emt 0:00:30]} Qxc2+ {[%emt 0:00:30]} 29. Nxc2 {[%emt 0:00:30]} Bxe5 {[%emt 0:00:30]} 30. b4 {[%emt 0:00:30]} (30. h4 $16) 30... Rg8 $14 {[%emt 0:00:30]} 31. Kg3 {[%emt 0:00:30]} Ne6+ {[%emt 0:00:30]} 32. Kg2 {[%emt 0:00:30]} (32. Kf2 $14) 32... Nf4+ $1 $11 {[%emt 0:00:30]} 33. Kg3 {[%emt 0:00:30]} Nd5+ {[%emt 0:00:30]} (33... Ne6+ $11 {keeps the balance.} 34. Kf3 Nxg5+ 35. Kg2 Ne6) 34. Kf3 $1 $16 {[%emt 0:00:30]} Rxg5 {[#]} 35. Ne3 $1 {[%emt 0:00:30]} e6 {[%emt 0:01:00]} 36. h4 {[%emt 0:00:30]} Rg8 {[%emt 0:00:30]} 37. g5 {[%emt 0:00:30]} Rf8 {[%emt 0:00:30]} 38. Ng4 {[%emt 0:00:30]} ({Better is} 38. b5 $18) 38... Bb2 {[%emt 0:00:30]} 39. Rd3 {[%emt 0:00:30]} (39. Rf2 $16 Bc3 (39... Bxa3 40. Ra2 $16) 40. Ne3) 39... f5 $14 {[%emt 0:00:30] [#]} 40. Ne3 $1 {[%emt 0:00:30]} e5 {[%emt 0:00:30]} 41. Ke2 {[%emt 0:00:30]} Bd4 $2 {[%emt 0:00:30][%mdl 8192]} ({Wrong is} 41... Nf4+ $2 42. Rxf4 exf4 43. Nc4 $18) (41... Nxe3 $16 42. Kxe3 Ke7) 42. Nxf5 {[%emt 0:00:30]} 1-0

[Event "7th Sharjah Masters 2024"]
[Site "Sharjah"]
[Date "2024.05.21"]
[Round "8.8"]
[White "Salem, A.R. Saleh"]
[Black "Nguyen, Thai Dai Van"]
[Result "1-0"]
[ECO "D78"]
[WhiteElo "2629"]
[BlackElo "2650"]
[Annotator "TA"]
[PlyCount "103"]
[EventDate "2024.05.13"]
[EventType "swiss"]
[EventCountry "UAE"]
[SourceTitle "playchess.com"]
[Source "ChessBase"]
[SourceQuality "1"]
[TimeControl "5400+30"]

{[%evp 24,103,-6,-18,-8,-7,-2,-10,7,6,7,15,1,8,0,18,19,0,24,23,36,36,31,29,25,31,27,12,33,22,17,16,19,19,25,8,9,0,6,0,29,30,50,32,27,21,67,15,18,21,87,87,141,139,150,147,147,145,152,149,142,150,140,139,248,238,246,144,252,205,273,267,312,312,1164,739,5600,5031,5678,5325,29959,12847]} 1. d4 {[%emt 1:31:00]} d5 {[%emt 1:31:00]} 2. Nf3 {[%emt 0:00:30]} Nf6 {[%emt 0:00:30]} 3. g3 {[%emt 0:00:30]} g6 {[%emt 0:00:30]} 4. Bg2 {[%emt 0:00:30]} Bg7 {[%emt 0:00:30]} 5. c4 {[%emt 0:00:30]} c6 {[%emt 0:00:30]} 6. O-O {[%emt 0:00:30]} O-O {[%emt 0:00:30]} 7. a4 {[%emt 0:00:30] D78: Fianchetto Grünfeld: 6 0-0 c6.} Be6 {[%emt 0:00:30]} 8. Nc3 {[%emt 0:00:30]} dxc4 {[%emt 0:00:30]} 9. e4 {[%emt 0:00:30]} Bg4 {[%emt 0:00:30]} 10. h3 $146 {[%emt 0:00:30]} ({Predecessor:} 10. Be3 Nbd7 11. h3 Bxf3 12. Bxf3 e5 13. Qe2 Qe7 14. Qxc4 exd4 15. Bxd4 Ne5 16. Bxe5 Qxe5 17. Bg2 Rfd8 18. Rfd1 {½-½ Illes,A (2077)-Bartha,S (2209) HUN-chT2 Asztalos 1112 2011 (9.4)}) 10... Bxf3 {[%emt 0:00:30]} 11. Bxf3 {[%emt 0:00:30]} e5 {[%emt 0:00:30]} 12. dxe5 {[%emt 0:00:30]} Nfd7 {[%emt 0:00:30]} 13. e6 $1 {[%emt 0:00:30]} fxe6 {[%emt 0:00:30]} 14. Be2 {[%emt 0:00:30]} Ne5 {[%emt 0:00:30]} 15. Be3 {[%emt 0:00:30]} Nd3 {[%emt 0:00:30]} 16. Bxd3 {[%emt 0:00:30]} cxd3 {[%emt 0:00:30]} 17. Qb3 {[%emt 0:00:30]} Qc8 {[%emt 0:00:30]} 18. f4 {[%emt 0:00:30]} c5 {[%emt 0:00:30]} 19. Qc4 {[%emt 0:00:30]} b6 {[%emt 0:00:30]} 20. e5 {[%emt 0:00:30]} Nc6 {[%emt 0:00:30]} 21. Qxd3 {[%emt 0:00:30]} Rd8 {[%emt 0:00:30]} 22. Qe4 {[%emt 0:00:30]} Nb4 {[%emt 0:00:30]} 23. Rfd1 {[%emt 0:00:30]} Qc6 {[%emt 0:00:30]} 24. Qxc6 {[%emt 0:00:30]} Nxc6 {[%emt 0:00:30]} 25. Nb5 {[%emt 0:00:30]} Bf8 {[%emt 0:00:30]} 26. Kf2 {[%emt 0:00:30]} (26. Nc7 {simplifies} Rxd1+ 27. Rxd1 Rd8 28. Rxd8 Nxd8 29. Kf2) 26... Kf7 {[%emt 0:00:30]} 27. Kf3 {[%emt 0:00:30]} Be7 {[%emt 0:00:30]} 28. Ke4 {[%emt 0:00:30]} a6 {[%emt 0:00:30]} 29. Na3 {[%emt 0:00:30]} Nb4 {[%emt 0:00:30]} 30. g4 {[%emt 0:00:30]} Nd5 {[%emt 0:00:30]} 31. Bf2 {[%emt 0:00:30]} Rac8 {[%emt 0:00:30]} 32. Nc4 {[%emt 0:00:30]} b5 {[%emt 0:00:30]} 33. axb5 {[%emt 0:00:30]} axb5 {[%emt 0:00:30]} 34. Ne3 {[%emt 0:00:30]} Nxe3 {[%emt 0:00:30]} (34... Nb4 $11) 35. Bxe3 {[%emt 0:00:30]} (35. Rxd8 $1 $14 Bxd8 36. Bxe3) 35... Rxd1 $11 {[%emt 0:00:30]} 36. Rxd1 {[%emt 0:00:30]} Ra8 {[%emt 0:00:30]} (36... Ke8 $11) 37. Rd7 $16 {[%emt 0:00:30]} Ra4+ {[%emt 0:00:30]} (37... Ke8 $142 38. Rb7 b4) 38. Kf3 $1 $16 {[%emt 0:00:30]} Ke8 {[%emt 0:00:30]} 39. Rb7 b4 {[%emt 0:00:30] [#]} 40. f5 $1 {[%emt 0:01:00]} gxf5 {[%emt 0:00:30]} 41. gxf5 {[%emt 0:00:30]} exf5 {[%emt 0:00:30]} 42. Kf4 {[%emt 0:00:30]} c4 {[%emt 0:00:30]} 43. Kxf5 {[%emt 0:00:30]} c3 {[%emt 0:00:30]} (43... Ra6 $16) 44. bxc3 $18 {[%emt 0:00:30]} bxc3 {[%emt 0:00:30]} 45. Rc7 {[%emt 0:00:30]} Ra2 {[%emt 0:00:30] [#]} (45... Ra1 $16 46. Rxc3 Ra8) 46. Rc8+ $1 $18 {[%emt 0:00:30]} ({But not} 46. Rxc3 $6 Ra1 47. Rb3 Ra8 $16) 46... Kd7 {[%emt 0:00:30]} 47. Rxc3 {[%emt 0:00:30]} Ra6 {[%emt 0:00:30]} 48. Rb3 {[%emt 0:00:30]} Ra8 $2 {[%emt 0:00:30]} (48... Ke8 49. Rb8+ Kd7) 49. Rb7+ $18 {[%emt 0:00:30]} Ke8 {[%emt 0:00:30]} 50. Bg5 {[%emt 0:00:30]} Bxg5 {[%emt 0:00:30]} 51. Kxg5 {[%emt 0:00:30]} h6+ {[%emt 0:00:30]} 52. Kf6 {[%emt 0:00:30]} ({Inferior is} 52. Kxh6 Ra5 $11) 1-0

[Event "7th Sharjah Masters 2024"]
[Site "Sharjah"]
[Date "2024.05.21"]
[Round "8.9"]
[White "Sankalp Gupta"]
[Black "Mendonca, Leon Luke"]
[Result "1/2-1/2"]
[ECO "A11"]
[WhiteElo "2532"]
[BlackElo "2640"]
[Annotator "TA"]
[PlyCount "68"]
[EventDate "2024.05.13"]
[EventType "swiss"]
[EventCountry "UAE"]
[SourceTitle "playchess.com"]
[Source "ChessBase"]
[SourceQuality "1"]
[TimeControl "5400+30"]

{[%evp 9,68,14,10,-12,-13,-9,-8,-29,-29,-35,0,-19,0,0,0,-39,-21,-71,-70,-81,-33,-129,-131,-117,-99,-89,-98,-80,-110,-145,-143,-139,-144,-142,-145,-153,-149,-165,-124,-122,-134,-135,-134,-131,-139,-130,-111,-109,-94,-98,-90,-82,-92,-76,0,0,0,0,0,0,0]} 1. Nf3 {[%emt 1:31:00]} d5 {[%emt 1:31:00]} 2. g3 {[%emt 0:00:30]} Nf6 {[%emt 0:00:30]} 3. Bg2 {[%emt 0:00:30]} c6 {[%emt 0:00:30]} 4. O-O {[%emt 0:00:30]} Bg4 {[%emt 0:00:30]} 5. c4 {[%emt 0:00:30]} e6 {[%emt 0:00:30]} 6. h3 {[%emt 0:00:30]} Bxf3 {[%emt 0:00:30]} 7. Bxf3 {[%emt 0:00:30]} dxc4 {[%emt 0:00:30]} 8. Na3 {[%emt 0:00:30]} Bxa3 {[%emt 0:00:30]} 9. bxa3 {[%emt 0:00:30]} O-O {[%emt 0:00:30]} 10. a4 {[%emt 0:00:30]} Qa5 {[%emt 0:00:30]} 11. Rb1 {[%emt 0:00:30]} Qa6 {[%emt 0:00:30]} 12. Ba3 {[%emt 0:00:30]} Re8 {[%emt 0:00:30]} 13. d4 {[%emt 0:00:30]} (13. d3 $11 {keeps the balance.}) 13... Nbd7 $17 {[%emt 0:00:30]} 14. Qc2 $1 {[%emt 0:00:30]} Rac8 {[%emt 0:00:30]} (14... Rad8 $17 15. Rfc1 b5) 15. Bc1 {[%emt 0:00:30]} ({White should play} 15. Rfc1 $15) 15... Nb6 {[%emt 0:00:30][%cal Bd7b6,Bb6a4,Ba4c3,Bc3d5,Bd5b4,Bb4d3][%mdl 32]} 16. Bg5 {[%emt 0:00:30]} Nxa4 {[%emt 0:00:30]} ({Inferior is} 16... Qxa4 17. Qxa4 Nxa4 18. Bxf6 $14 (18. Rxb7 Nd5 $11)) 17. Bxf6 {[%emt 0:00:30]} gxf6 {[%emt 0:00:30]} 18. Qe4 {[%emt 0:00:30]} b5 {[%emt 0:00:30]} 19. Qh4 {[%emt 0:00:30]} Qb7 {[%emt 0:00:30]} 20. Qxf6 {[%emt 0:00:30]} Qe7 {[%emt 0:00:30]} 21. Qh6 {[%emt 0:00:30]} Nc3 {[%emt 0:00:30][%csl LRa2,LRb1]} 22. Rb2 {[%emt 0:00:30]} Nd5 {[%emt 0:00:30]} 23. Rd1 {[%emt 0:00:30]} Qf6 {[%emt 0:00:30]} 24. Qc1 {[%emt 0:00:30]} Red8 {[%emt 0:00:30]} 25. Kg2 {[%emt 0:00:30]} a5 {[%emt 0:00:30]} 26. e4 {[%emt 0:00:30]} Nb4 {[%emt 0:00:30]} 27. e5 {[%emt 0:00:30]} Qg6 {[%emt 0:00:30] aiming for ...Nd3.} 28. Re2 {[%emt 0:00:30]} Nd3 {[%emt 0:00:30]} 29. Qe3 {[%emt 0:00:30]} c5 {[%emt 0:00:30]} 30. Be4 {[%emt 0:00:30]} cxd4 {[%emt 0:00:30]} 31. Qd2 {[%emt 0:00:30] [#]} Qh5 {[%emt 0:00:30]} (31... f5 $1 $17 {[%cal Rf5e4]} 32. exf6 Qxf6 33. Bxd3 cxd3 34. Qxd3 Rc5) 32. Bf3 $11 {[%emt 0:00:30] The position is equal.} (32. g4 $2 Qh4 (32... Qxe5 33. Bxh7+ Kxh7 34. Rxe5 $11) 33. Bxd3 cxd3 $19) 32... Qf5 {[%emt 0:00:30]} 33. Be4 {[%emt 0:00:30] The board is on fire.} Qh5 {[%emt 0:00:30]} 34. Bf3 $1 {[%emt 0:00:30]} ({Not} 34. g4 $2 Qh4 (34... Qxe5 35. Bxh7+ Kxh7 36. Rxe5 $11) 35. Bxd3 cxd3 $19) 34... Qf5 {[%emt 0:00:30] Weighted Error Value: White=0.12 (very precise) /Black=0.10 (very precise) .  Mistake:       	White=2     	Black=2      Inaccurate:     	White=2     	Black=1      OK:         	White=12    	Black=12     Best:        	White=2     	Black=3      Strong:       	White=2     	---} 1/2-1/2

[Event "7th Sharjah Masters 2024"]
[Site "Sharjah"]
[Date "2024.05.21"]
[Round "8.10"]
[White "Zemlyanskii, Ivan"]
[Black "Mishra, Abhimanyu"]
[Result "1/2-1/2"]
[ECO "B97"]
[WhiteElo "2516"]
[BlackElo "2634"]
[Annotator "TA"]
[PlyCount "54"]
[EventDate "2024.05.13"]
[EventType "swiss"]
[EventCountry "UAE"]
[SourceTitle "playchess.com"]
[Source "ChessBase"]
[SourceQuality "1"]
[TimeControl "5400+30"]

{[%evp 20,54,-2,-22,-32,-13,0,0,0,0,-14,-2,0,0,-22,-22,0,0,0,0,0,0,0,0,0,0,0,0,0,-42,-37,-28,-47,-50,-50,-37,0]} 1. e4 {[%emt 0:00:03]} c5 {[%emt 0:00:03]} 2. Nf3 {[%emt 0:00:03]} d6 {[%emt 0:00:06]} 3. d4 {[%emt 0:00:03]} cxd4 {[%emt 0:00:06]} 4. Nxd4 {[%emt 0:00:04]} Nf6 {[%emt 0:00:06]} 5. Nc3 {[%emt 0:00:03]} a6 {[%emt 0:00:08]} 6. Bg5 {[%emt 0:00:02]} e6 {[%emt 0:00:10]} 7. f4 {[%emt 0:00:03]} Qb6 {[%emt 0:00:39]} 8. Qd2 {[%emt 0:00:10]} Qxb2 {[%emt 0:00:23]} 9. Rb1 {[%emt 0:00:02]} Qa3 {[%emt 0:00:11]} 10. e5 {[%emt 0:00:07]} h6 {[%emt 0:04:23]} 11. Bh4 {[%emt 0:00:03]} (11. exf6 hxg5 12. Ne4 d5 $15 (12... Qxa2 13. fxg7 Qxb1+ 14. Kf2 $11)) 11... dxe5 {[%emt 0:00:36]} 12. fxe5 {[%emt 0:00:03]} Nfd7 {[%emt 0:00:40]} 13. Ne4 $1 {[%emt 0:00:15]} Qxa2 {[%emt 0:01:53] The position is equal.} 14. Rd1 {[%emt 0:00:04]} Qd5 {[%emt 0:00:27]} (14... Nxe5 15. Nxe6 (15. Nb5 f6 $18) 15... f5 (15... fxe6 $2 16. Be2 $18) 16. Nxf8 $18 (16. Nc7+ Kf7 $16)) 15. Qe3 {[%emt 0:00:08]} Qxe5 {[%emt 0:00:24]} 16. Be2 {[%emt 0:00:20]} Bc5 $1 {[%emt 0:03:45] ...Bb6 is the strong threat.} 17. Bg3 {[%emt 0:00:05]} Qd5 {[%emt 0:00:46] Hoping for ...0-0.} 18. O-O {[%emt 0:00:16]} e5 {[%emt 0:04:08]} 19. Nxc5 {[%emt 0:00:34]} Qxc5 {[%emt 0:00:30]} 20. Rxf7 $1 {[%emt 0:00:04]} Kxf7 {[%emt 0:00:31]} 21. Qb3+ {[%emt 0:00:10]} Ke7 {[%emt 0:00:32]} 22. Bf2 $1 {[%emt 0:00:04]} exd4 {[%emt 0:01:22]} 23. Bxd4 {[%emt 0:00:03] White wants to mate with Qe3+.} Qd6 {[%emt 0:01:43] Strongly threatening ...Nc6.} 24. Bh5 {[%emt 0:01:13] [#] Threatens to win with Qe3+. Dancing on a razor blade. This pair of bishops is nice.} g6 $1 {[%emt 0:04:44]} 25. Qe3+ {[%emt 0:04:01]} Qe6 {[%emt 0:01:10]} 26. Qg3 {[%emt 0:17:10]} gxh5 {[%emt 0:01:58]} 27. Bxh8 {[%emt 0:00:07]} Kd8 {[%emt 0:00:20] Weighted Error Value: White=0.04 (flawless) /Black=0.02 (flawless) .  Inaccurate:     	White=1     	Black=1      OK:         	White=8     	Black=5      Best:        	White=2     	Black=3      Strong:       	White=3     	Black=2} (27... Nc6 $5 28. Re1 Nde5 29. Bxe5 Qg4 (29... Nxe5 $2 30. Rxe5 a5 31. Qh4+ Kd6 32. Qd4+ Kc7 33. Rxe6 $18) 30. Qa3+ Kf7 $11) 1/2-1/2

[Event "7th Sharjah Masters 2024"]
[Site "Sharjah"]
[Date "2024.05.21"]
[Round "8.11"]
[White "Artemiev, Vladislav"]
[Black "Gledura, Benjamin"]
[Result "1/2-1/2"]
[ECO "D02"]
[WhiteElo "2705"]
[BlackElo "2619"]
[Annotator "TA"]
[PlyCount "121"]
[EventDate "2024.05.13"]
[EventType "swiss"]
[EventCountry "UAE"]
[SourceTitle "playchess.com"]
[Source "ChessBase"]
[SourceQuality "1"]
[TimeControl "5400+30"]

{[%evp 11,121,20,15,12,20,19,25,2,19,16,14,19,13,17,53,48,55,39,34,18,22,31,41,26,36,12,4,12,18,32,21,26,22,16,31,25,29,14,13,8,9,0,0,0,0,0,0,0,0,0,28,0,4,6,8,0,0,0,0,0,0,0,0,0,0,0,0,0,0,0,0,0,0,0,0,0,0,0,0,0,0,0,2,0,0,0,0,0,0,0,0,0,0,0,0,0,0,0,0,0,0,0,0,0,0,0,0,0,0,0,0,0]} 1. d4 {[%emt 0:02:58]} d5 {[%emt 0:00:10]} 2. Nf3 {[%emt 0:00:34]} Nf6 {[%emt 0:00:32]} 3. Bf4 {[%emt 0:00:26]} c5 {[%emt 0:00:36]} 4. e3 {[%emt 0:00:19]} Nc6 {[%emt 0:00:19]} 5. Nbd2 {[%emt 0:00:46]} Bg4 {[%emt 0:01:27]} 6. c3 {[%emt 0:03:49]} e6 {[%emt 0:00:34]} 7. Qb3 {[%emt 0:03:57]} Qc8 {[%emt 0:05:23]} 8. Nh4 {[%emt 0:00:47]} Bh5 {[%emt 0:04:56]} 9. h3 {[%emt 0:00:33] White has an edge.} Be7 {[%emt 0:08:03]} 10. g4 {[%emt 0:01:59]} Bg6 {[%emt 0:01:11]} 11. Nxg6 {[%emt 0:02:05]} hxg6 {[%emt 0:00:07]} 12. Be2 {[%emt 0:01:53]} Qd7 {[%emt 0:14:16]} 13. dxc5 {[%emt 0:07:52]} Bxc5 {[%emt 0:06:52]} 14. O-O-O {[%emt 0:20:50]} Na5 {[%emt 0:14:46]} 15. Qb5 {[%emt 0:14:43]} Qxb5 {[%emt 0:00:22]} 16. Bxb5+ {[%emt 0:00:07]} Nc6 {[%emt 0:00:05]} 17. g5 {[%emt 0:00:56]} Nd7 {[%emt 0:03:27]} 18. c4 {[%emt 0:02:45]} a6 {[%emt 0:07:15]} 19. Ba4 {[%emt 0:01:21]} Nb6 {[%emt 0:03:02]} 20. cxd5 {[%emt 0:00:49]} exd5 {[%emt 0:03:32]} 21. Bb3 {[%emt 0:07:18]} O-O-O {[%emt 0:00:14][%cal Be8c8,Bc8c7,Bc7d6][%mdl 32]} 22. h4 {[%emt 0:06:27]} Bd6 {[%emt 0:02:34]} 23. Bxd6 {[%emt 0:02:05]} Rxd6 {[%emt 0:00:06]} 24. Nf3 {[%emt 0:02:03]} Kc7 {[%emt 0:01:31]} 25. Kc2 {[%emt 0:08:40]} Nc4 {[%emt 0:01:52]} 26. Bxc4 {[%emt 0:02:17]} dxc4 {[%emt 0:00:06]} 27. Rxd6 {[%emt 0:00:03]} Kxd6 $11 {[%emt 0:00:07][%mdl 4096] Endgame. KRN-KRN} 28. Rd1+ {[%emt 0:00:12]} Kc7 {[%emt 0:06:41]} 29. Kc3 {[%emt 0:02:41]} b5 {[%emt 0:00:08]} 30. a4 {[%emt 0:00:41]} bxa4 {[%emt 0:08:18]} 31. Ra1 {[%emt 0:00:11]} Rb8 {[%emt 0:00:15] The position is equal.} 32. Nd2 {[%emt 0:00:25]} Rb4 {[%emt 0:00:06]} 33. Rh1 {[%emt 0:03:08]} a5 {[%emt 0:05:23]} 34. f4 {[%emt 0:01:11]} Na7 {[%emt 0:00:27]} 35. Nxc4 {[%emt 0:00:06]} Nb5+ {[%emt 0:00:06]} 36. Kd3 {[%emt 0:00:06]} Nd6 {[%emt 0:01:25]} 37. Rc1 {[%emt 0:01:13]} Nxc4 {[%emt 0:01:52]} 38. Rxc4+ {[%emt 0:00:05] KR-KR} Kd6 {[%emt 0:00:04]} 39. Rc2 {[%emt 0:01:06]} Kd5 {[%emt 0:01:09]} 40. Rd2 {[%emt 0:00:16]} Rb3+ {[%emt 0:00:28]} 41. Kc2+ {[%emt 0:00:11]} Ke4 {[%emt 0:00:22]} 42. Rd7 {[%emt 0:00:10] Repels Rb7} Rxe3 {[%emt 0:00:10]} ({But not} 42... Kxe3 $6 43. Rxf7 Rb4 44. Rxg7 Rxf4 45. Rxg6 Rc4+ 46. Kb1 Rxh4 47. Rg8 $14) 43. Rxf7 {[%emt 0:00:07]} Rh3 {[%emt 0:00:48]} 44. Ra7 {[%emt 0:01:40]} Rxh4 {[%emt 0:00:13]} 45. Rxg7 {[%emt 0:00:29]} Rxf4 {[%emt 0:01:00] [#] aiming for ...Kf5.} 46. Rxg6 {[%emt 0:00:03]} Kf5 {[%emt 0:00:25]} 47. Rg8 {[%emt 0:00:40]} Rb4 {[%emt 0:00:21]} 48. Rg7 {[%emt 0:00:35]} Rb5 {[%emt 0:00:13]} 49. Rg8 {[%emt 0:00:20]} Rb4 {[%emt 0:00:18]} 50. g6 {[%emt 0:00:15]} Kf6 {[%emt 0:00:12]} 51. Kc3 {[%emt 0:00:21]} Rb3+ {[%emt 0:00:06]} 52. Kc2 {[%emt 0:00:03]} Rb5 {[%emt 0:00:25]} 53. Kc1 {[%emt 0:00:12]} Rb4 {[%emt 0:00:06]} 54. g7 {[%emt 0:00:04]} Kf7 {[%emt 0:00:07]} 55. Ra8 {[%emt 0:00:05]} Kxg7 {[%emt 0:00:05]} 56. Rxa5 {[%emt 0:00:05]} Kf6 {[%emt 0:00:11]} 57. Kb1 {[%emt 0:00:17]} Ke6 {[%emt 0:00:06]} 58. Ka2 {[%emt 0:00:03]} Kd6 {[%emt 0:00:05]} 59. Ka3 {[%emt 0:00:04]} Rb3+ {[%emt 0:00:05]} 60. Kxa4 {[%emt 0:00:05]} Rxb2 {[%emt 0:00:05]} 61. Rb5 {[%emt 0:00:39] Weighted Error Value: White=0.03 (flawless) /Black=0.02 (flawless) .  Inaccurate:     	---       	Black=2      OK:         	White=22    	Black=33     Best:        	White=5     	Black=4} 1/2-1/2